[Event "Nordstansblixten 2025"]
[Site "Nordstan, Göteborg, Sweden"]
[Date "2025.05.10"]
[Round "8.7"]
[White "Kadunic, Admir"]
[Black "Wennerholm, Camilla"]
[Result "1-0"]
[TimeControl "3 minutes + 2 seconds per move from move one"]
[WhiteFideId "1773542"]
[BlackFideId "1776380"]
[WhiteElo "2109"]
[BlackElo "1599"]

1. d4 {[%clk 00:03:03]} Nf6 {[%clk 00:03:02]} {[%emt 00:00:03]} 2. Bg5 {[%clk
00:03:04]} {[%emt 00:00:01]} c5 {[%clk 00:03:02]} {[%emt 00:00:02]} 3. d5
{[%clk 00:03:04]} {[%emt 00:00:02]} d6 {[%clk 00:03:03]} 4. c4 {[%clk
00:03:05]} Nbd7 {[%clk 00:02:59]} {[%emt 00:00:06]} 5. Nc3 {[%clk 00:03:04]}
{[%emt 00:00:03]} b6 {[%clk 00:02:57]} {[%emt 00:00:05]} 6. e4 {[%clk
00:03:04]} {[%emt 00:00:02]} Bb7 {[%clk 00:02:55]} {[%emt 00:00:04]} 7. Bd3
{[%clk 00:03:04]} {[%emt 00:00:02]} h6 {[%clk 00:02:50]} {[%emt 00:00:07]} 8.
Bh4 {[%clk 00:03:04]} {[%emt 00:00:01]} g5 {[%clk 00:02:51]} {[%emt 00:00:01]}
9. Bg3 {[%clk 00:03:05]} {[%emt 00:00:01]} Bg7 {[%clk 00:02:51]} {[%emt
00:00:03]} 10. Nge2 {[%clk 00:03:04]} {[%emt 00:00:03]} O-O {[%clk 00:02:49]}
{[%emt 00:00:03]} 11. O-O {[%clk 00:03:03]} {[%emt 00:00:03]} Nh5 {[%clk
00:02:47]} {[%emt 00:00:04]} 12. Qd2 {[%clk 00:02:59]} {[%emt 00:00:06]} a6
{[%clk 00:02:19]} {[%emt 00:00:30]} 13. a4 {[%clk 00:02:55]} {[%emt 00:00:06]}
Ndf6 {[%clk 00:02:04]} {[%emt 00:00:16]} 14. f4 {[%clk 00:02:42]} {[%emt
00:00:16]} e6 {[%clk 00:01:43]} {[%emt 00:00:23]} 15. fxg5 {[%clk 00:02:40]}
{[%emt 00:00:05]} hxg5 {[%clk 00:01:40]} {[%emt 00:00:05]} 16. Qxg5 {[%clk
00:02:39]} {[%emt 00:00:03]} e5 {[%clk 00:01:33]} {[%emt 00:00:09]} 17. Bh4
{[%clk 00:02:27]} {[%emt 00:00:14]} Bc8 {[%clk 00:01:26]} {[%emt 00:00:09]} 18.
Rf3 {[%clk 00:02:15]} {[%emt 00:00:14]} Bg4 {[%clk 00:01:11]} {[%emt 00:00:17]}
19. Rf2 {[%clk 00:02:14]} {[%emt 00:00:02]} Qe7 {[%clk 00:01:07]} {[%emt
00:00:07]} 20. Raf1 {[%clk 00:02:10]} {[%emt 00:00:07]} Rae8 {[%clk 00:00:50]}
{[%emt 00:00:18]} 21. h3 {[%clk 00:02:09]} {[%emt 00:00:03]} Bd7 {[%clk
00:00:47]} {[%emt 00:00:06]} 22. Qe3 {[%clk 00:02:04]} {[%emt 00:00:05]} Qd8
{[%clk 00:00:30]} {[%emt 00:00:20]} 23. g4 {[%clk 00:02:02]} {[%emt 00:00:04]}
Nf4 {[%clk 00:00:29]} {[%emt 00:00:04]} 24. Nxf4 {[%clk 00:02:01]} {[%emt
00:00:02]} exf4 {[%clk 00:00:29]} {[%emt 00:00:02]} 25. Rxf4 {[%clk 00:02:01]}
{[%emt 00:00:02]} Nh7 {[%clk 00:00:22]} {[%emt 00:00:09]} 26. Bxd8 {[%clk
00:01:59]} {[%emt 00:00:04]} Rxd8 {[%clk 00:00:22]} {[%emt 00:00:02]} 27. e5
{[%clk 00:01:51]} {[%emt 00:00:10]} Bxe5 {[%clk 00:00:11]} {[%emt 00:00:13]} 28.
Qe4 {[%clk 00:01:50]} {[%emt 00:00:04]} Bf5 {[%clk 00:00:03]} {[%emt 00:00:09]}
29. Qxf5 {[%clk 00:01:47]} {[%emt 00:00:05]} 1-0

[Event "Nordstansblixten 2025"]
[Site "Nordstan, Göteborg, Sweden"]
[Date "2025.05.10"]
[Round "8.8"]
[White "Alsjo, Sigge"]
[Black "Gustavsson, Ville"]
[Result "0-1"]
[TimeControl "3 minutes + 2 seconds per move from move one"]
[WhiteFideId "1794027"]
[BlackFideId "1792822"]
[WhiteElo "1539"]
[BlackElo "1798"]

1. e4 {[%clk 00:03:02]} {[%emt 00:00:02]} c6 {[%clk 00:03:04]} 2. d4 {[%clk
00:03:03]} d5 {[%clk 00:03:06]} 3. e5 {[%clk 00:03:05]} c5 {[%clk 00:03:07]} 4.
dxc5 {[%clk 00:03:06]} e6 {[%clk 00:03:09]} 5. Be3 {[%clk 00:03:03]} {[%emt
00:00:05]} Nd7 {[%clk 00:03:10]} 6. Bb5 {[%clk 00:02:57]} {[%emt 00:00:08]} Ne7
{[%clk 00:03:03]} {[%emt 00:00:09]} 7. Bxd7+ {[%clk 00:02:54]} {[%emt
00:00:05]} Bxd7 {[%clk 00:03:03]} {[%emt 00:00:02]} 8. Nf3 {[%clk 00:02:54]}
{[%emt 00:00:02]} Nf5 {[%clk 00:02:54]} {[%emt 00:00:11]} 9. Bd4 {[%clk
00:02:45]} {[%emt 00:00:10]} Qc7 {[%clk 00:02:50]} {[%emt 00:00:06]} 10. c3
{[%clk 00:02:44]} {[%emt 00:00:03]} Be7 {[%clk 00:02:39]} {[%emt 00:00:13]} 11.
O-O {[%clk 00:02:24]} {[%emt 00:00:23]} Bxc5 {[%clk 00:02:37]} {[%emt
00:00:04]} 12. Re1 {[%clk 00:02:02]} {[%emt 00:00:23]} O-O {[%emt 00:00:13]} 13.
Nbd2 {[%clk 00:01:48]} {[%emt 00:00:07]} Rac8 {[%clk 00:02:00]} {[%emt
00:00:38]} 14. Nb3 {[%clk 00:01:48]} {[%emt 00:00:01]} Bxd4 {[%clk 00:01:50]}
{[%emt 00:00:12]} 15. cxd4 {[%clk 00:01:49]} b6 {[%clk 00:01:30]} {[%emt
00:00:23]} 16. Rc1 {[%clk 00:01:50]} Qb7 {[%clk 00:01:27]} {[%emt 00:00:04]} 17.
h3 {[%clk 00:01:37]} {[%emt 00:00:15]} Ba4 {[%clk 00:01:27]} {[%emt 00:00:03]}
18. Rxc8 {[%clk 00:01:27]} {[%emt 00:00:12]} Rxc8 {[%clk 00:01:28]} 19. Qd3
{[%clk 00:01:14]} {[%emt 00:00:15]} Rc4 {[%clk 00:01:08]} {[%emt 00:00:22]} 20.
Rc1 {[%clk 00:01:11]} {[%emt 00:00:06]} Bxb3 {[%clk 00:01:05]} {[%emt
00:00:04]} 21. Rxc4 {[%clk 00:01:07]} {[%emt 00:00:06]} Bxc4 {[%clk 00:01:06]}
{[%emt 00:00:01]} 22. Qxc4 {[%clk 00:01:07]} dxc4 {[%clk 00:01:07]} {[%emt
00:00:02]} 23. Nd2 {[%clk 00:01:01]} {[%emt 00:00:08]} Nxd4 {[%clk 00:01:01]}
{[%emt 00:00:08]} 24. Nxc4 {[%clk 00:01:02]} {[%emt 00:00:02]} Qd5 {[%clk
00:00:57]} {[%emt 00:00:04]} 25. Nd2 {[%clk 00:00:59]} {[%emt 00:00:06]} Ne2+
{[%clk 00:00:57]} {[%emt 00:00:02]} 26. Kh2 {[%clk 00:00:54]} {[%emt 00:00:07]}
Qxd2 {[%emt 00:00:04]} 27. b4 {[%clk 00:00:53]} Qf4+ {[%clk 00:00:59]} 28. Kh1
{[%clk 00:00:53]} {[%emt 00:00:02]} Qxf2 {[%clk 00:00:51]} {[%emt 00:00:09]}
0-1

[Event "Nordstansblixten 2025"]
[Site "Nordstan, Göteborg, Sweden"]
[Date "2025.05.10"]
[Round "8.9"]
[White "Munuswamy, Shivakumar"]
[Black "Sivarama, Saadhvik"]
[Result "0-1"]
[TimeControl "3 minutes + 2 seconds per move from move one"]
[WhiteFideId "1788914"]
[BlackFideId "1773720"]
[WhiteElo "1458"]
[BlackElo "1592"]

1. e4 {[%clk 00:03:02]} {[%emt 00:00:02]} c5 {[%clk 00:03:03]} 2. b3 {[%clk
00:02:59]} {[%emt 00:00:04]} d6 {[%clk 00:03:03]} {[%emt 00:00:04]} 3. Bb2
{[%clk 00:02:57]} {[%emt 00:00:03]} Nf6 {[%clk 00:03:03]} {[%emt 00:00:02]} 4.
Nc3 {[%clk 00:02:56]} {[%emt 00:00:03]} g6 {[%clk 00:03:02]} {[%emt 00:00:03]}
5. Nf3 {[%clk 00:02:52]} {[%emt 00:00:06]} Bg7 {[%clk 00:03:03]} 6. Bb5+ {[%clk
00:02:43]} {[%emt 00:00:10]} Bd7 {[%clk 00:02:54]} {[%emt 00:00:11]} 7. Qe2
{[%clk 00:02:40]} {[%emt 00:00:06]} O-O {[%clk 00:02:52]} {[%emt 00:00:04]} 8.
O-O-O {[%clk 00:02:37]} {[%emt 00:00:05]} Nc6 {[%clk 00:02:45]} {[%emt
00:00:08]} 9. Bxc6 {[%clk 00:02:33]} {[%emt 00:00:06]} Bxc6 {[%clk 00:02:45]}
{[%emt 00:00:02]} 10. e5 {[%clk 00:02:30]} {[%emt 00:00:06]} Bxf3 {[%clk
00:02:34]} {[%emt 00:00:13]} 11. gxf3 {[%clk 00:02:26]} {[%emt 00:00:07]} dxe5
{[%clk 00:02:28]} {[%emt 00:00:07]} 12. Qxe5 {[%clk 00:02:24]} {[%emt
00:00:04]} Ng4 {[%clk 00:02:04]} {[%emt 00:00:26]} 13. Qg3 {[%clk 00:02:18]}
{[%emt 00:00:08]} Ne5 {[%clk 00:01:59]} {[%emt 00:00:07]} 14. f4 {[%clk
00:02:11]} {[%emt 00:00:09]} Nc6 {[%clk 00:01:59]} {[%emt 00:00:02]} 15. h4
{[%clk 00:02:08]} {[%emt 00:00:05]} h5 {[%clk 00:01:57]} {[%emt 00:00:04]} 16.
Rhe1 {[%clk 00:01:52]} {[%emt 00:00:17]} e5 {[%clk 00:01:44]} {[%emt 00:00:15]}
17. Qg5 {[%clk 00:01:28]} {[%emt 00:00:26]} Qxg5 {[%clk 00:01:39]} {[%emt
00:00:08]} 18. fxg5 {[%clk 00:01:28]} {[%emt 00:00:02]} f6 {[%clk 00:01:28]}
{[%emt 00:00:14]} 19. Nd5 {[%clk 00:01:16]} {[%emt 00:00:13]} fxg5 {[%clk
00:01:20]} {[%emt 00:00:09]} 20. hxg5 {[%clk 00:01:14]} {[%emt 00:00:05]} Rxf2
{[%clk 00:01:16]} {[%emt 00:00:06]} 21. Nf6+ {[%clk 00:00:58]} {[%emt
00:00:18]} Bxf6 {[%clk 00:01:15]} {[%emt 00:00:02]} 22. gxf6 {[%clk 00:00:58]}
{[%emt 00:00:02]} Rxf6 {[%clk 00:01:16]} {[%emt 00:00:02]} 23. Bxe5 {[%clk
00:00:54]} {[%emt 00:00:07]} Nxe5 {[%clk 00:01:16]} {[%emt 00:00:01]} 24. Rxe5
{[%clk 00:00:54]} {[%emt 00:00:02]} b6 {[%clk 00:01:10]} {[%emt 00:00:08]} 25.
d4 {[%clk 00:00:48]} {[%emt 00:00:09]} cxd4 {[%clk 00:00:48]} {[%emt 00:00:24]}
26. Rxd4 {[%clk 00:00:48]} {[%emt 00:00:02]} Raf8 {[%clk 00:00:45]} {[%emt
00:00:04]} 27. Re7 {[%clk 00:00:46]} {[%emt 00:00:03]} R8f7 {[%clk 00:00:40]}
{[%emt 00:00:08]} 28. Rd8+ {[%clk 00:00:43]} {[%emt 00:00:06]} Kg7 {[%clk
00:00:39]} {[%emt 00:00:03]} 29. Ree8 {[%clk 00:00:42]} {[%emt 00:00:04]} Rf8
{[%clk 00:00:34]} {[%emt 00:00:06]} 30. Rd7+ {[%clk 00:00:40]} {[%emt
00:00:04]} R6f7 {[%clk 00:00:34]} {[%emt 00:00:03]} 31. Rxf8 {[%clk 00:00:28]}
{[%emt 00:00:14]} Kxf8 {[%clk 00:00:33]} {[%emt 00:00:03]} 32. Rd6 {[%clk
00:00:27]} {[%emt 00:00:03]} Kg7 {[%clk 00:00:33]} {[%emt 00:00:03]} 33. Kd2
{[%clk 00:00:26]} {[%emt 00:00:02]} g5 {[%clk 00:00:31]} {[%emt 00:00:04]} 34.
Rd4 {[%clk 00:00:22]} {[%emt 00:00:05]} Kg6 {[%clk 00:00:27]} {[%emt 00:00:07]}
35. c4 {[%clk 00:00:21]} {[%emt 00:00:03]} g4 {[%clk 00:00:23]} {[%emt
00:00:06]} 36. Ke2 {[%clk 00:00:20]} {[%emt 00:00:02]} Kg5 {[%clk 00:00:20]}
{[%emt 00:00:05]} 37. Rd5+ {[%clk 00:00:16]} {[%emt 00:00:06]} Kh4 {[%clk
00:00:20]} {[%emt 00:00:03]} 38. c5 {[%clk 00:00:12]} {[%emt 00:00:06]} bxc5
{[%clk 00:00:19]} {[%emt 00:00:02]} 39. Rxc5 {[%clk 00:00:13]} {[%emt
00:00:02]} g3 {[%clk 00:00:18]} {[%emt 00:00:03]} 40. Rc4+ {[%clk 00:00:10]}
{[%emt 00:00:04]} Kh3 {[%clk 00:00:18]} {[%emt 00:00:02]} 41. Ra4 {[%clk
00:00:07]} {[%emt 00:00:06]} g2 {[%clk 00:00:17]} {[%emt 00:00:03]} 0-1

[Event "Nordstansblixten 2025"]
[Site "Nordstan, Göteborg, Sweden"]
[Date "2025.05.10"]
[Round "9.1"]
[White "Wellevit, Tomas"]
[Black "Karlsson, Stefan"]
[Result "0-1"]
[TimeControl "3 minutes + 2 seconds per move from move one"]
[WhiteFideId "1731963"]
[BlackFideId "1771183"]
[WhiteElo "2131"]
[BlackElo "2128"]

1. e4 {[%clk 00:03:02]} {[%emt 00:07:50]} c5 {[%clk 00:03:04]} 2. Nf3 {[%clk
00:03:05]} d6 {[%clk 00:03:05]} 3. Bc4 {[%clk 00:03:06]} Nf6 {[%clk 00:03:06]}
4. d3 {[%clk 00:03:07]} Nc6 {[%clk 00:03:03]} {[%emt 00:00:05]} 5. O-O {[%clk
00:03:07]} {[%emt 00:00:02]} e6 {[%clk 00:03:02]} {[%emt 00:00:03]} 6. a3
{[%clk 00:03:08]} {[%emt 00:00:02]} Be7 {[%clk 00:03:02]} {[%emt 00:00:02]} 7.
c3 {[%clk 00:03:05]} {[%emt 00:00:04]} d5 {[%clk 00:02:59]} {[%emt 00:00:05]} 8.
exd5 {[%clk 00:03:06]} {[%emt 00:00:02]} exd5 {[%clk 00:03:00]} 9. Ba2 {[%clk
00:03:07]} O-O {[%clk 00:02:53]} {[%emt 00:00:09]} 10. d4 {[%clk 00:03:08]}
{[%emt 00:00:01]} Bg4 {[%clk 00:02:44]} {[%emt 00:00:11]} 11. Be3 {[%clk
00:03:08]} {[%emt 00:00:01]} cxd4 {[%clk 00:02:38]} {[%emt 00:00:09]} 12. cxd4
{[%clk 00:03:07]} {[%emt 00:00:03]} Qb6 {[%clk 00:02:30]} {[%emt 00:00:10]} 13.
Nc3 {[%clk 00:02:31]} {[%emt 00:00:39]} Rfd8 {[%clk 00:02:12]} {[%emt
00:00:19]} 14. Na4 {[%clk 00:02:26]} {[%emt 00:00:06]} Qc7 {[%clk 00:02:06]}
{[%emt 00:00:07]} 15. b4 {[%clk 00:02:23]} {[%emt 00:00:06]} Ne4 {[%clk
00:02:01]} {[%emt 00:00:07]} 16. Rc1 {[%clk 00:02:15]} {[%emt 00:00:11]} Qd7
{[%clk 00:01:43]} {[%emt 00:00:20]} 17. Nc5 {[%clk 00:02:06]} {[%emt 00:00:10]}
Bxc5 {[%clk 00:01:35]} {[%emt 00:00:11]} 18. bxc5 {[%clk 00:01:58]} {[%emt
00:00:11]} Qf5 {[%clk 00:01:30]} {[%emt 00:00:06]} 19. Bb1 {[%clk 00:01:52]}
{[%emt 00:00:08]} Qh5 {[%clk 00:01:06]} {[%emt 00:00:25]} 20. Bd3 {[%clk
00:01:48]} {[%emt 00:00:06]} Ne7 {[%clk 00:00:59]} {[%emt 00:00:10]} 21. Be2
{[%clk 00:01:48]} {[%emt 00:00:01]} Nf5 {[%clk 00:00:59]} {[%emt 00:00:01]} 22.
Qd3 {[%clk 00:01:15]} {[%emt 00:00:34]} Nh4 {[%clk 00:00:54]} {[%emt 00:00:08]}
23. Bf4 {[%clk 00:00:47]} {[%emt 00:00:30]} Bxf3 {[%clk 00:00:19]} {[%emt
00:00:37]} 24. Bxf3 {[%clk 00:00:45]} {[%emt 00:00:04]} Nxf3+ {[%clk 00:00:14]}
{[%emt 00:00:07]} 25. Qxf3 {[%clk 00:00:42]} {[%emt 00:00:05]} Qxf3 {[%clk
00:00:13]} {[%emt 00:00:03]} 26. gxf3 {[%clk 00:00:43]} Nf6 {[%clk 00:00:13]}
{[%emt 00:00:03]} 27. Rb1 {[%clk 00:00:39]} {[%emt 00:00:06]} Rd7 {[%clk
00:00:14]} 28. Rb4 {[%clk 00:00:37]} {[%emt 00:00:04]} Re8 {[%clk 00:00:08]}
{[%emt 00:00:07]} 29. Rfb1 {[%clk 00:00:38]} {[%emt 00:00:02]} b6 {[%clk
00:00:07]} {[%emt 00:00:04]} 30. cxb6 {[%clk 00:00:36]} {[%emt 00:00:04]} axb6
{[%clk 00:00:08]} 31. Rxb6 {[%clk 00:00:37]} Ra7 {[%clk 00:00:08]} {[%emt
00:00:02]} 32. R1b3 {[%clk 00:00:35]} {[%emt 00:00:04]} Nh5 {[%clk 00:00:06]}
{[%emt 00:00:04]} 33. Be3 {[%clk 00:00:36]} f5 {[%clk 00:00:05]} {[%emt
00:00:02]} 34. f4 {[%clk 00:00:35]} {[%emt 00:00:04]} Nf6 {[%clk 00:00:07]} 35.
f3 {[%clk 00:00:35]} {[%emt 00:00:02]} Nd7 {[%clk 00:00:08]} {[%emt 00:00:01]}
36. R6b5 {[%clk 00:00:27]} {[%emt 00:00:10]} Rea8 {[%clk 00:00:08]} {[%emt
00:00:02]} 37. Bc1 {[%clk 00:00:27]} {[%emt 00:00:02]} Ra4 {[%clk 00:00:07]}
{[%emt 00:00:03]} 38. Bb2 {[%clk 00:00:27]} {[%emt 00:00:02]} Rc8 {[%clk
00:00:07]} {[%emt 00:00:03]} 39. Kf2 {[%clk 00:00:26]} {[%emt 00:00:02]} Rc2+
{[%clk 00:00:08]} 40. Ke3 {[%clk 00:00:26]} {[%emt 00:00:02]} Nf6 {[%clk
00:00:06]} {[%emt 00:00:04]} 41. Rb8+ {[%clk 00:00:26]} {[%emt 00:00:02]} Kf7
{[%clk 00:00:08]} 42. R8b4 {[%clk 00:00:20]} {[%emt 00:00:08]} Ra8 {[%clk
00:00:07]} {[%emt 00:00:03]} 43. Rc3 {[%clk 00:00:17]} {[%emt 00:00:05]} Re8+
{[%clk 00:00:08]} 44. Kd3 {[%clk 00:00:14]} {[%emt 00:00:05]} Rf2 {[%clk
00:00:08]} 45. Rc7+ {[%clk 00:00:14]} {[%emt 00:00:02]} Kg6 {[%clk 00:00:09]}
46. Rc3 {[%clk 00:00:11]} {[%emt 00:00:06]} Ree2 {[%clk 00:00:10]} {[%emt
00:00:01]} 47. Bc1 {[%clk 00:00:08]} {[%emt 00:00:05]} Rxh2 {[%clk 00:00:08]}
{[%emt 00:00:04]} 48. Rb6 {[%clk 00:00:06]} {[%emt 00:00:04]} Ra2 {[%clk
00:00:08]} {[%emt 00:00:02]} 49. Rbb3 {[%clk 00:00:04]} {[%emt 00:00:04]} Rhf2
{[%clk 00:00:09]} {[%emt 00:00:01]} 0-1

[Event "Nordstansblixten 2025"]
[Site "Nordstan, Göteborg, Sweden"]
[Date "2025.05.10"]
[Round "9.2"]
[White "Torres, Lucas"]
[Black "Ring, Sami"]
[Result "1-0"]
[TimeControl "3 minutes + 2 seconds per move from move one"]
[WhiteFideId "1769464"]
[BlackFideId "1785869"]
[WhiteElo "1805"]
[BlackElo "1712"]

1. e4 {[%clk 00:03:04]} {[%emt 00:04:50]} c5 {[%clk 00:03:04]} 2. Nc3 {[%clk
00:03:04]} {[%emt 00:00:01]} Nc6 {[%clk 00:03:05]} 3. Bb5 {[%clk 00:03:05]} Nd4
{[%clk 00:03:06]} {[%emt 00:00:02]} 4. Nf3 {[%clk 00:03:06]} Nxb5 {[%clk
00:03:07]} {[%emt 00:00:02]} 5. Nxb5 {[%clk 00:03:07]} a6 {[%clk 00:03:08]} 6.
Nc3 {[%clk 00:03:08]} g6 {[%clk 00:03:09]} {[%emt 00:00:01]} 7. d4 {[%clk
00:03:04]} {[%emt 00:00:05]} cxd4 {[%clk 00:03:10]} {[%emt 00:00:02]} 8. Qxd4
{[%clk 00:03:04]} Nf6 {[%clk 00:02:58]} {[%emt 00:00:14]} 9. Bg5 {[%clk
00:02:48]} {[%emt 00:00:18]} Bg7 {[%clk 00:02:57]} {[%emt 00:00:03]} 10. O-O
{[%clk 00:02:43]} {[%emt 00:00:07]} O-O {[%clk 00:02:56]} {[%emt 00:00:04]} 11.
Qd2 {[%clk 00:02:35]} {[%emt 00:00:09]} d6 {[%clk 00:02:56]} {[%emt 00:00:02]}
12. Rad1 {[%clk 00:02:35]} {[%emt 00:00:02]} b5 {[%clk 00:02:55]} {[%emt
00:00:03]} 13. e5 {[%clk 00:02:31]} {[%emt 00:00:06]} Ne8 {[%clk 00:02:50]}
{[%emt 00:00:07]} 14. exd6 {[%emt 00:00:14]} Qxd6 {[%clk 00:02:46]} {[%emt
00:00:04]} 15. Qxd6 {[%clk 00:02:19]} {[%emt 00:00:04]} exd6 {[%clk 00:02:47]}
{[%emt 00:00:02]} 16. Be7 {[%clk 00:02:20]} Bxc3 {[%clk 00:02:43]} {[%emt
00:00:05]} 17. bxc3 {[%clk 00:02:20]} {[%emt 00:00:02]} Be6 {[%clk 00:02:18]}
{[%emt 00:00:28]} 18. Bxf8 {[%clk 00:02:19]} {[%emt 00:00:02]} Kxf8 {[%clk
00:02:18]} {[%emt 00:00:02]} 19. a3 {[%clk 00:02:16]} {[%emt 00:00:05]} Rc8
{[%clk 00:02:19]} 20. Nd4 {[%clk 00:01:45]} {[%emt 00:00:33]} Bc4 {[%clk
00:02:16]} {[%emt 00:00:05]} 21. Rfe1 {[%clk 00:01:44]} {[%emt 00:00:03]} d5
{[%clk 00:02:15]} {[%emt 00:00:04]} 22. Re3 {[%clk 00:01:34]} {[%emt 00:00:11]}
Nd6 {[%clk 00:02:13]} {[%emt 00:00:04]} 23. Rde1 {[%clk 00:01:28]} {[%emt
00:00:08]} Kg7 {[%clk 00:02:07]} {[%emt 00:00:08]} 24. f3 {[%clk 00:01:08]}
{[%emt 00:00:23]} Nb7 {[%clk 00:02:06]} {[%emt 00:00:02]} 25. Re7 {[%clk
00:01:01]} {[%emt 00:00:07]} Nc5 {[%clk 00:02:06]} {[%emt 00:00:04]} 26. Ra7
{[%clk 00:00:53]} {[%emt 00:00:09]} Na4 {[%clk 00:01:42]} {[%emt 00:00:28]} 27.
Ree7 {[%clk 00:00:48]} {[%emt 00:00:06]} Rh8 {[%clk 00:01:24]} {[%emt
00:00:20]} 28. Rxf7+ {[%clk 00:00:45]} {[%emt 00:00:06]} Kh6 {[%clk 00:01:25]}
{[%emt 00:00:01]} 29. h4 {[%clk 00:00:26]} {[%emt 00:00:21]} Kh5 {[%clk
00:01:17]} {[%emt 00:00:10]} 30. Rxh7+ {[%clk 00:00:24]} {[%emt 00:00:03]} 1-0

[Event "Nordstansblixten 2025"]
[Site "Nordstan, Göteborg, Sweden"]
[Date "2025.05.10"]
[Round "9.3"]
[White "Bergdahl, Daniel"]
[Black "Kenani, Dariush"]
[Result "1/2-1/2"]
[TimeControl "3 minutes + 2 seconds per move from move one"]
[WhiteFideId "1780921"]
[BlackFideId "1707973"]
[WhiteElo "1855"]
[BlackElo "1933"]

1. e4 {[%clk 00:03:03]} {[%emt 00:00:01]} c5 {[%clk 00:03:02]} {[%emt
00:00:02]} 2. Nf3 {[%clk 00:03:04]} d6 {[%clk 00:03:03]} 3. c3 {[%clk
00:03:05]} {[%emt 00:00:01]} Nc6 {[%clk 00:03:03]} {[%emt 00:00:02]} 4. d4
{[%clk 00:03:05]} {[%emt 00:00:03]} cxd4 {[%clk 00:03:03]} {[%emt 00:00:02]} 5.
cxd4 {[%clk 00:03:06]} g6 {[%clk 00:03:02]} {[%emt 00:00:03]} 6. Nc3 {[%clk
00:03:04]} {[%emt 00:00:03]} Bg7 {[%clk 00:03:02]} {[%emt 00:00:02]} 7. Bc4
{[%clk 00:03:05]} {[%emt 00:00:01]} e6 {[%clk 00:02:56]} {[%emt 00:00:08]} 8.
O-O {[%clk 00:03:05]} {[%emt 00:00:01]} Nge7 {[%clk 00:02:55]} {[%emt
00:00:03]} 9. d5 {[%clk 00:03:03]} {[%emt 00:00:04]} Ne5 {[%clk 00:02:46]}
{[%emt 00:00:11]} 10. Nxe5 {[%clk 00:02:59]} {[%emt 00:00:06]} Bxe5 {[%clk
00:02:46]} {[%emt 00:00:02]} 11. dxe6 {[%clk 00:02:52]} {[%emt 00:00:10]} Bxe6
{[%clk 00:02:41]} {[%emt 00:00:06]} 12. Bxe6 {[%clk 00:02:38]} {[%emt
00:00:16]} fxe6 {[%clk 00:02:42]} 13. Bh6 {[%clk 00:02:38]} {[%emt 00:00:02]}
Nc6 {[%clk 00:02:34]} {[%emt 00:00:10]} 14. Nb5 {[%clk 00:02:31]} {[%emt
00:00:10]} a6 {[%clk 00:02:32]} {[%emt 00:00:04]} 15. Nc3 {[%clk 00:02:28]}
{[%emt 00:00:04]} Qh4 {[%clk 00:02:23]} {[%emt 00:00:11]} 16. g3 {[%clk
00:01:56]} {[%emt 00:00:34]} Qxh6 {[%clk 00:02:23]} {[%emt 00:00:02]} 17. Qg4
{[%clk 00:01:57]} Ke7 {[%clk 00:02:08]} {[%emt 00:00:15]} 18. Ne2 {[%clk
00:01:53]} {[%emt 00:00:08]} Raf8 {[%clk 00:01:57]} {[%emt 00:00:13]} 19. Rad1
{[%clk 00:01:46]} {[%emt 00:00:09]} Qg7 {[%clk 00:01:50]} {[%emt 00:00:09]} 20.
f4 {[%clk 00:01:38]} {[%emt 00:00:11]} Bd4+ {[%clk 00:01:41]} {[%emt 00:00:10]}
21. Kg2 {[%clk 00:01:34]} {[%emt 00:00:06]} h5 {[%clk 00:01:37]} {[%emt
00:00:07]} 22. Qf3 {[%clk 00:01:20]} {[%emt 00:00:15]} h4 {[%clk 00:01:28]}
{[%emt 00:00:11]} 23. Nxd4 {[%clk 00:01:20]} {[%emt 00:00:02]} Nxd4 {[%clk
00:01:29]} {[%emt 00:00:02]} 24. Qd3 {[%clk 00:01:15]} {[%emt 00:00:07]} hxg3
{[%clk 00:01:15]} {[%emt 00:00:15]} 25. Qxd4 {[%clk 00:01:13]} {[%emt
00:00:04]} Qxd4 {[%clk 00:01:10]} {[%emt 00:00:07]} 26. Rxd4 {[%clk 00:01:14]}
{[%emt 00:00:01]} Rxh2+ {[%clk 00:01:11]} {[%emt 00:00:01]} 27. Kxg3 {[%clk
00:01:10]} {[%emt 00:00:06]} Rxb2 {[%clk 00:01:11]} {[%emt 00:00:02]} 28. Rc1
{[%clk 00:01:09]} {[%emt 00:00:03]} Rd8 {[%clk 00:01:06]} {[%emt 00:00:06]} 29.
Rh1 {[%clk 00:00:49]} {[%emt 00:00:22]} e5 {[%clk 00:00:32]} {[%emt 00:00:36]}
30. fxe5 {[%clk 00:00:44]} {[%emt 00:00:07]} Rxa2 {[%clk 00:00:27]} {[%emt
00:00:08]} 31. exd6+ {[%clk 00:00:33]} {[%emt 00:00:13]} Rxd6 {[%clk 00:00:28]}
{[%emt 00:00:01]} 32. Rh7+ {[%clk 00:00:33]} {[%emt 00:00:01]} Ke6 {[%clk
00:00:29]} {[%emt 00:00:02]} 33. Rxd6+ {[%clk 00:00:31]} {[%emt 00:00:03]} Kxd6
{[%clk 00:00:30]} {[%emt 00:00:01]} 34. Rxb7 {[%clk 00:00:32]} {[%emt
00:00:02]} Ke5 {[%clk 00:00:28]} {[%emt 00:00:04]} 35. Re7+ {[%clk 00:00:26]}
{[%emt 00:00:07]} Kf6 {[%clk 00:00:29]} {[%emt 00:00:01]} 36. Rb7 {[%clk
00:00:27]} {[%emt 00:00:02]} a5 {[%clk 00:00:22]} {[%emt 00:00:09]} 37. Kf4
{[%clk 00:00:22]} {[%emt 00:00:06]} g5+ {[%clk 00:00:23]} {[%emt 00:00:01]} 38.
Kg4 {[%clk 00:00:21]} {[%emt 00:00:04]} Rg2+ {[%clk 00:00:23]} 39. Kf3 {[%clk
00:00:22]} Ra2 {[%clk 00:00:24]} {[%emt 00:00:01]} 40. Kg4 {[%clk 00:00:23]}
{[%emt 00:00:01]} Rg2+ {[%clk 00:00:25]} 41. Kf3 {[%clk 00:00:24]} Ra2 {[%clk
00:00:24]} {[%emt 00:00:03]} 42. Kg4 {[%clk 00:00:25]} {[%emt 00:00:01]}
1/2-1/2